[Event "Late-Titled-Tuesday-Blitz-February-13-2024"]
[Site "Chess.com"]
[Date "2024.02.13"]
[Round "10"]
[White "reevecanada"]
[Black "CFalcons8"]
[Result "1-0"]
[WhiteElo "2567"]
[BlackElo "2434"]
[TimeControl "180+1"]
[EndTime "15:54:58 PST"]
[Termination "reevecanada won by checkmate"]

1. e4 {[%clk 0:02:56.5]} 1... e5 {[%clk 0:02:59.3]} 2. Nf3 {[%clk 0:02:44.4]}
2... Nc6 {[%clk 0:02:59]} 3. d4 {[%clk 0:02:43.4]} 3... exd4 {[%clk 0:02:59.9]}
4. Nxd4 {[%clk 0:02:43.8]} 4... Nf6 {[%clk 0:03:00.5]} 5. Nxc6 {[%clk
0:02:43.4]} 5... bxc6 {[%clk 0:03:01.4]} 6. e5 {[%clk 0:02:43.5]} 6... Qe7
{[%clk 0:03:02.1]} 7. Qe2 {[%clk 0:02:43.6]} 7... Nd5 {[%clk 0:03:01.3]} 8. c4
{[%clk 0:02:44.2]} 8... Ba6 {[%clk 0:02:53.6]} 9. b3 {[%clk 0:02:43.7]} 9... g6
{[%clk 0:02:51.9]} 10. Bb2 {[%clk 0:02:42.2]} 10... Bg7 {[%clk 0:02:51.3]} 11.
g3 {[%clk 0:02:41.2]} 11... O-O {[%clk 0:02:50.9]} 12. Bg2 {[%clk 0:02:40.2]}
12... Rfe8 {[%clk 0:02:45.3]} 13. O-O {[%clk 0:02:38.9]} 13... Bxe5 {[%clk
0:02:41.5]} 14. Qxe5 {[%clk 0:02:36.6]} 14... Qxe5 {[%clk 0:02:42.4]} 15. Bxe5
{[%clk 0:02:37.1]} 15... Rxe5 {[%clk 0:02:43.3]} 16. cxd5 {[%clk 0:02:37.7]}
16... Bxf1 {[%clk 0:02:43.8]} 17. Kxf1 {[%clk 0:02:37.9]} 17... cxd5 {[%clk
0:02:43.7]} 18. Nc3 {[%clk 0:02:38.5]} 18... c6 {[%clk 0:02:44.1]} 19. f4 {[%clk
0:02:37.6]} 19... Re3 {[%clk 0:02:43.7]} 20. Nd1 {[%clk 0:02:22.5]} 20... Re7
{[%clk 0:02:38.9]} 21. Nf2 {[%clk 0:02:19.7]} 21... a5 {[%clk 0:02:34.5]} 22.
Re1 {[%clk 0:02:08.5]} 22... Rxe1+ {[%clk 0:02:34]} 23. Kxe1 {[%clk 0:02:06.8]}
23... a4 {[%clk 0:02:34.9]} 24. b4 {[%clk 0:02:03.9]} 24... a3 {[%clk
0:02:30.6]} 25. Nd3 {[%clk 0:02:02.7]} 25... d6 {[%clk 0:02:29.6]} 26. Kd2
{[%clk 0:01:59.9]} 26... Rb8 {[%clk 0:02:27.3]} 27. Bf3 {[%clk 0:01:56.1]} 27...
f5 {[%clk 0:02:21.8]} 28. Bd1 {[%clk 0:01:53.8]} 28... Kf7 {[%clk 0:02:21.8]}
29. Ba4 {[%clk 0:01:52.8]} 29... c5 {[%clk 0:02:20.1]} 30. Kc3 {[%clk 0:01:02]}
30... cxb4+ {[%clk 0:02:04.3]} 31. Nxb4 {[%clk 0:01:02.9]} 31... d4+ {[%clk
0:02:04.2]} 32. Kc4 {[%clk 0:00:59.5]} 32... d5+ {[%clk 0:02:04.3]} 33. Nxd5
{[%clk 0:00:57.1]} 33... Rb2 {[%clk 0:02:03.7]} 34. Bb3 {[%clk 0:00:56.7]} 34...
Rxh2 {[%clk 0:02:02.9]} 35. Kxd4 {[%clk 0:00:56.2]} 35... Rh3 {[%clk 0:02:00.6]}
36. Ne3+ {[%clk 0:00:43.8]} 36... Ke7 {[%clk 0:01:56.2]} 37. Nf1 {[%clk
0:00:39.5]} 37... Rh1 {[%clk 0:01:51.6]} 38. Bc4 {[%clk 0:00:38.1]} 38... Kd6
{[%clk 0:01:47.9]} 39. Ne3 {[%clk 0:00:36.9]} 39... Rg1 {[%clk 0:01:43.9]} 40.
Nf1 {[%clk 0:00:36.2]} 40... h6 {[%clk 0:01:38.4]} 41. Ke3 {[%clk 0:00:34.9]}
41... Rg2 {[%clk 0:01:32.3]} 42. Be2 {[%clk 0:00:32.7]} 42... g5 {[%clk
0:01:22.6]} 43. Kf3 {[%clk 0:00:26.3]} 43... Rg1 {[%clk 0:01:22.9]} 44. Kf2
{[%clk 0:00:26]} 44... Rh1 {[%clk 0:01:19.4]} 45. Bf3 {[%clk 0:00:25.4]} 45...
Rh3 {[%clk 0:01:19.2]} 46. Kg2 {[%clk 0:00:19.8]} 46... g4 {[%clk 0:01:17.1]}
47. Be2 {[%clk 0:00:19.9]} 47... h5 {[%clk 0:01:17.4]} 48. Ne3 {[%clk 0:00:20]}
48... Ke6 {[%clk 0:01:15.3]} 49. Bd3 {[%clk 0:00:14.3]} 49... h4 {[%clk
0:01:14.5]} 50. Bxf5+ {[%clk 0:00:14.1]} 50... Kf6 {[%clk 0:01:14.4]} 51. Nxg4+
{[%clk 0:00:13.7]} 51... Kxf5 {[%clk 0:01:06.4]} 52. Kxh3 {[%clk 0:00:14]} 52...
hxg3 {[%clk 0:01:07.3]} 53. Kxg3 {[%clk 0:00:13.8]} 53... Ke4 {[%clk 0:01:08.1]}
54. Nf2+ {[%clk 0:00:12.6]} 54... Ke3 {[%clk 0:01:08.5]} 55. f5 {[%clk 0:00:12]}
55... Kd2 {[%clk 0:01:09.4]} 56. f6 {[%clk 0:00:12.9]} 56... Kc3 {[%clk
0:01:10.3]} 57. f7 {[%clk 0:00:13.8]} 57... Kb2 {[%clk 0:01:10.8]} 58. f8=Q
{[%clk 0:00:14.7]} 58... Kxa2 {[%clk 0:01:11.7]} 59. Qb4 {[%clk 0:00:14.5]}
59... Ka1 {[%clk 0:01:11.7]} 60. Nd3 {[%clk 0:00:14.7]} 60... a2 {[%clk
0:01:11.8]} 61. Qb2# {[%clk 0:00:14.1]} 1-0

[Event "Late-Titled-Tuesday-Blitz-February-13-2024"]
[Site "Chess.com"]
[Date "2024.02.13"]
[Round "10"]
[White "Fjal"]
[Black "Attacker_2006"]
[Result "1-0"]
[WhiteElo "2248"]
[BlackElo "2425"]
[TimeControl "180+1"]
[EndTime "15:55:02 PST"]
[Termination "Fjal won by resignation"]

1. Nf3 {[%clk 0:02:46.4]} 1... d5 {[%clk 0:03:00.5]} 2. g3 {[%clk 0:02:47.3]}
2... c5 {[%clk 0:02:59.7]} 3. Bg2 {[%clk 0:02:47.9]} 3... Nc6 {[%clk 0:03:00.1]}
4. d4 {[%clk 0:02:47.8]} 4... e6 {[%clk 0:02:58.5]} 5. O-O {[%clk 0:02:46.7]}
5... Nf6 {[%clk 0:02:51.3]} 6. c4 {[%clk 0:02:44]} 6... dxc4 {[%clk 0:02:47.1]}
7. Na3 {[%clk 0:02:30.6]} 7... cxd4 {[%clk 0:02:41]} 8. Nxc4 {[%clk 0:02:30.2]}
8... Bc5 {[%clk 0:02:39.8]} 9. a3 {[%clk 0:02:22.4]} 9... a5 {[%clk 0:02:37]}
10. Qc2 {[%clk 0:02:09.9]} 10... O-O {[%clk 0:02:33.8]} 11. Rd1 {[%clk
0:02:08.6]} 11... Bd7 {[%clk 0:02:30]} 12. Nfe5 {[%clk 0:02:06.2]} 12... Qc7
{[%clk 0:02:20.9]} 13. Bf4 {[%clk 0:02:03.7]} 13... Nxe5 {[%clk 0:02:20.4]} 14.
Bxe5 {[%clk 0:01:59.6]} 14... Qc8 {[%clk 0:02:14.5]} 15. Rac1 {[%clk 0:01:44.6]}
15... Bc6 {[%clk 0:02:11.1]} 16. Bxd4 {[%clk 0:01:22.7]} 16... Bxg2 {[%clk
0:02:04.9]} 17. Bxf6 {[%clk 0:01:18.4]} 17... Bd5 {[%clk 0:01:56.2]} 18. Be5
{[%clk 0:01:12.4]} 18... Qc6 {[%clk 0:01:45.7]} 19. Nd6 {[%clk 0:00:54.5]} 19...
Bh1 {[%clk 0:01:40]} 20. e4 {[%clk 0:00:53.2]} 20... Bf3 {[%clk 0:01:36.9]} 21.
Rd2 {[%clk 0:00:29.5]} 21... Bxd6 {[%clk 0:01:32.9]} 22. Qxc6 {[%clk 0:00:30.4]}
22... bxc6 {[%clk 0:01:30.7]} 23. Rxd6 {[%clk 0:00:29.7]} 23... Bxe4 {[%clk
0:01:27.9]} 24. Rc4 {[%clk 0:00:29.6]} 24... Bd5 {[%clk 0:01:26]} 25. Rg4 {[%clk
0:00:30]} 25... g6 {[%clk 0:01:14.4]} 26. Rd7 {[%clk 0:00:29.6]} 26... Rad8
{[%clk 0:01:11.8]} 27. Rb7 {[%clk 0:00:30.1]} 27... f6 {[%clk 0:00:50.8]} 28.
Bc3 {[%clk 0:00:26.3]} 28... Rf7 {[%clk 0:00:45.7]} 29. Rxf7 {[%clk 0:00:19.6]}
29... Kxf7 {[%clk 0:00:46.6]} 30. Rf4 {[%clk 0:00:20.2]} 30... f5 {[%clk
0:00:43.9]} 31. h3 {[%clk 0:00:19.4]} 31... Be4 {[%clk 0:00:41.8]} 32. g4 {[%clk
0:00:19.6]} 32... Rd1+ {[%clk 0:00:37.6]} 33. Kh2 {[%clk 0:00:19.9]} 33... Rh1+
{[%clk 0:00:29.1]} 34. Kg3 {[%clk 0:00:20]} 34... g5 {[%clk 0:00:29.8]} 35. Rxe4
{[%clk 0:00:15.8]} 35... fxe4 {[%clk 0:00:30.7]} 36. Bxa5 {[%clk 0:00:16.2]}
36... Rb1 {[%clk 0:00:29.1]} 37. Bc3 {[%clk 0:00:16.4]} 37... Ke7 {[%clk
0:00:29.2]} 38. a4 {[%clk 0:00:17]} 38... Kd6 {[%clk 0:00:28.9]} 39. a5 {[%clk
0:00:17.4]} 39... Kc5 {[%clk 0:00:28.8]} 40. h4 {[%clk 0:00:17.7]} 40... gxh4+
{[%clk 0:00:28.4]} 41. Kxh4 {[%clk 0:00:18.6]} 41... Kb5 {[%clk 0:00:28.9]} 42.
Kg3 {[%clk 0:00:19]} 42... c5 {[%clk 0:00:27.6]} 43. Kf4 {[%clk 0:00:19.4]}
43... Re1 {[%clk 0:00:25.1]} 44. Bxe1 {[%clk 0:00:18.5]} 1-0

[Event "Late-Titled-Tuesday-Blitz-February-13-2024"]
[Site "Chess.com"]
[Date "2024.02.13"]
[Round "10"]
[White "ChEsper99"]
[Black "AndresDelgado77"]
[Result "1-0"]
[WhiteElo "2215"]
[BlackElo "2323"]
[TimeControl "180+1"]
[EndTime "15:55:04 PST"]
[Termination "ChEsper99 won on time"]

1. d4 {[%clk 0:02:50.8]} 1... Nf6 {[%clk 0:02:51.8]} 2. Bf4 {[%clk 0:02:50.8]}
2... c5 {[%clk 0:02:51.3]} 3. c3 {[%clk 0:02:49.6]} 3... cxd4 {[%clk 0:02:47.4]}
4. cxd4 {[%clk 0:02:49.7]} 4... Qb6 {[%clk 0:02:47.9]} 5. Qc2 {[%clk 0:02:13.9]}
5... Nc6 {[%clk 0:02:41.9]} 6. e3 {[%clk 0:02:13.7]} 6... d5 {[%clk 0:02:32]} 7.
Nc3 {[%clk 0:02:12.5]} 7... Bf5 {[%clk 0:02:26.6]} 8. Qb3 {[%clk 0:01:49.8]}
8... Qxb3 {[%clk 0:02:02.7]} 9. axb3 {[%clk 0:01:50.7]} 9... e6 {[%clk
0:02:03.1]} 10. Nb5 {[%clk 0:01:46.3]} 10... Bb4+ {[%clk 0:02:02]} 11. Ke2
{[%clk 0:01:33.9]} 11... Kd7 {[%clk 0:01:55.8]} 12. f3 {[%clk 0:01:29.2]} 12...
Rhc8 {[%clk 0:01:49.2]} 13. g4 {[%clk 0:01:21.9]} 13... Bg6 {[%clk 0:01:39.2]}
14. Kf2 {[%clk 0:01:18.8]} 14... Na5 {[%clk 0:01:24.6]} 15. Ra4 {[%clk
0:00:56.9]} 15... Rc2+ {[%clk 0:01:23.3]} 16. Kg3 {[%clk 0:00:46.7]} 16... Be1+
{[%clk 0:01:16.4]} 17. Kh3 {[%clk 0:00:44.4]} 17... Rxb2 {[%clk 0:01:04.7]} 18.
b4 {[%clk 0:00:32.8]} 18... Bxb4 {[%clk 0:00:50.3]} 19. Ne2 {[%clk 0:00:26.8]}
19... Bc2 {[%clk 0:00:30.1]} 20. Ra1 {[%clk 0:00:22.1]} 20... Bd3 {[%clk
0:00:21]} 21. Nec3 {[%clk 0:00:20.8]} 21... Bxf1+ {[%clk 0:00:19.9]} 22. Rhxf1
{[%clk 0:00:20.7]} 22... Nc6 {[%clk 0:00:20.2]} 23. Rfb1 {[%clk 0:00:16.4]}
23... Rxb1 {[%clk 0:00:19.7]} 24. Rxb1 {[%clk 0:00:17.3]} 24... a6 {[%clk
0:00:18.6]} 25. Na2 {[%clk 0:00:08]} 25... axb5 {[%clk 0:00:12.8]} 26. Nxb4
{[%clk 0:00:07.8]} 26... Ra4 {[%clk 0:00:10.5]} 27. Nd3 {[%clk 0:00:06.9]} 27...
Rc4 {[%clk 0:00:07]} 28. Rxb5 {[%clk 0:00:05.8]} 28... Kc8 {[%clk 0:00:04.6]}
29. Nc5 {[%clk 0:00:03.3]} 29... b6 {[%clk 0:00:01.2]} 30. Rxb6 {[%clk
0:00:02.8]} 1-0

[Event "Late-Titled-Tuesday-Blitz-February-13-2024"]
[Site "Chess.com"]
[Date "2024.02.13"]
[Round "10"]
[White "GoValya"]
[Black "Conejoviejo67"]
[Result "1-0"]
[WhiteElo "2275"]
[BlackElo "2426"]
[TimeControl "180+1"]
[EndTime "15:55:07 PST"]
[Termination "GoValya won by checkmate"]

1. d4 {[%clk 0:03:00.9]} 1... d5 {[%clk 0:02:58.4]} 2. g3 {[%clk 0:03:00.4]}
2... f5 {[%clk 0:02:57]} 3. Bg2 {[%clk 0:03:00.4]} 3... Nf6 {[%clk 0:02:57]} 4.
Nf3 {[%clk 0:03:00.6]} 4... e6 {[%clk 0:02:57.2]} 5. O-O {[%clk 0:03:01]} 5...
Bd6 {[%clk 0:02:57.3]} 6. b3 {[%clk 0:03:01.3]} 6... Qe7 {[%clk 0:02:57.1]} 7.
a4 {[%clk 0:03:00.5]} 7... Nbd7 {[%clk 0:02:50.2]} 8. Ba3 {[%clk 0:02:59.1]}
8... O-O {[%clk 0:02:48.8]} 9. Bxd6 {[%clk 0:02:58.7]} 9... Qxd6 {[%clk
0:02:48]} 10. c4 {[%clk 0:02:58.8]} 10... c6 {[%clk 0:02:48]} 11. Nc3 {[%clk
0:02:56.7]} 11... Ne4 {[%clk 0:02:46.5]} 12. Qc2 {[%clk 0:02:47.2]} 12... b6
{[%clk 0:02:46.1]} 13. Nd2 {[%clk 0:02:15.8]} 13... Ba6 {[%clk 0:02:43.1]} 14.
Ncxe4 {[%clk 0:01:58.6]} 14... fxe4 {[%clk 0:02:39.2]} 15. e3 {[%clk 0:01:53.7]}
15... e5 {[%clk 0:02:38.3]} 16. Rfd1 {[%clk 0:01:34.9]} 16... exd4 {[%clk
0:02:37.4]} 17. exd4 {[%clk 0:01:35.3]} 17... Qf6 {[%clk 0:02:36.4]} 18. Nf1
{[%clk 0:01:30.6]} 18... Rac8 {[%clk 0:02:33.9]} 19. Ne3 {[%clk 0:01:23.2]}
19... Qe6 {[%clk 0:02:26.6]} 20. Qd2 {[%clk 0:01:17]} 20... Nf6 {[%clk
0:02:24.8]} 21. Rac1 {[%clk 0:01:14.4]} 21... Rfd8 {[%clk 0:02:22]} 22. h3
{[%clk 0:01:06.1]} 22... Bb7 {[%clk 0:02:15.3]} 23. c5 {[%clk 0:01:03]} 23...
Nd7 {[%clk 0:02:06.5]} 24. b4 {[%clk 0:01:01.7]} 24... bxc5 {[%clk 0:01:56.9]}
25. bxc5 {[%clk 0:01:00.3]} 25... Rb8 {[%clk 0:01:54]} 26. Qe2 {[%clk
0:00:56.7]} 26... Nf6 {[%clk 0:01:51.5]} 27. Rb1 {[%clk 0:00:50.6]} 27... g6
{[%clk 0:01:47.6]} 28. Rb2 {[%clk 0:00:48.1]} 28... Qd7 {[%clk 0:01:34.3]} 29.
Rdb1 {[%clk 0:00:44.6]} 29... Qc7 {[%clk 0:01:33.9]} 30. a5 {[%clk 0:00:39.2]}
30... Ba8 {[%clk 0:01:30.6]} 31. a6 {[%clk 0:00:34.8]} 31... h5 {[%clk
0:01:25.9]} 32. g4 {[%clk 0:00:33.3]} 32... h4 {[%clk 0:01:21.5]} 33. g5 {[%clk
0:00:33.1]} 33... Nh5 {[%clk 0:01:15.6]} 34. Qg4 {[%clk 0:00:30.8]} 34... Nf4
{[%clk 0:01:10.9]} 35. Rxb8 {[%clk 0:00:19.3]} 35... Rxb8 {[%clk 0:01:10.5]} 36.
Rxb8+ {[%clk 0:00:18.5]} 36... Qxb8 {[%clk 0:01:11.4]} 37. Qd7 {[%clk
0:00:18.5]} 37... Ne2+ {[%clk 0:01:06]} 38. Kh1 {[%clk 0:00:14.3]} 38... Nxd4
{[%clk 0:00:52.3]} 39. Ng4 {[%clk 0:00:06.7]} 39... Qb1+ {[%clk 0:00:45.9]} 40.
Kh2 {[%clk 0:00:07.3]} 40... Qb8+ {[%clk 0:00:44.3]} 41. Kg1 {[%clk 0:00:07.5]}
41... Qb1+ {[%clk 0:00:43.5]} 42. Bf1 {[%clk 0:00:06.8]} 42... Nf3+ {[%clk
0:00:39.4]} 43. Kg2 {[%clk 0:00:07.3]} 43... Ne1+ {[%clk 0:00:39.3]} 44. Kh1
{[%clk 0:00:07.7]} 44... Nd3 {[%clk 0:00:36.7]} 45. Nh6+ {[%clk 0:00:05.2]}
45... Kh8 {[%clk 0:00:34.7]} 46. Qe8+ {[%clk 0:00:05.2]} 46... Kh7 {[%clk
0:00:33.1]} 47. Qg8# {[%clk 0:00:05.4]} 1-0

[Event "Late-Titled-Tuesday-Blitz-February-13-2024"]
[Site "Chess.com"]
[Date "2024.02.13"]
[Round "10"]
[White "Bryanl106"]
[Black "viniciusrego"]
[Result "1-0"]
[WhiteElo "2530"]
[BlackElo "2384"]
[TimeControl "180+1"]
[EndTime "15:55:13 PST"]
[Termination "Bryanl106 won by resignation"]

1. e4 {[%clk 0:03:00.9]} 1... c5 {[%clk 0:03:00.3]} 2. Nf3 {[%clk 0:03:00.9]}
2... Nc6 {[%clk 0:03:00.5]} 3. d4 {[%clk 0:03:01.6]} 3... cxd4 {[%clk
0:03:01.4]} 4. Nxd4 {[%clk 0:03:02.5]} 4... g6 {[%clk 0:03:01]} 5. Nc3 {[%clk
0:03:01.5]} 5... Bg7 {[%clk 0:03:00.5]} 6. Be3 {[%clk 0:03:02.1]} 6... Nf6
{[%clk 0:03:00.4]} 7. Bc4 {[%clk 0:03:00.7]} 7... O-O {[%clk 0:02:59.5]} 8. Bb3
{[%clk 0:02:57.2]} 8... a5 {[%clk 0:02:50.8]} 9. a3 {[%clk 0:02:48.5]} 9... a4
{[%clk 0:02:49.1]} 10. Ba2 {[%clk 0:02:47.5]} 10... Qa5 {[%clk 0:02:48.9]} 11.
O-O {[%clk 0:02:45.5]} 11... d6 {[%clk 0:02:45.8]} 12. h3 {[%clk 0:02:45.3]}
12... Bd7 {[%clk 0:02:44.9]} 13. Qe2 {[%clk 0:02:43.7]} 13... Nxd4 {[%clk
0:02:36.4]} 14. Bxd4 {[%clk 0:02:44.6]} 14... Bc6 {[%clk 0:02:37]} 15. Qe3
{[%clk 0:02:18.6]} 15... Nd7 {[%clk 0:02:36.1]} 16. Bxg7 {[%clk 0:02:16.2]}
16... Kxg7 {[%clk 0:02:37]} 17. Rad1 {[%clk 0:02:14.7]} 17... Qc5 {[%clk
0:02:34.7]} 18. Qg3 {[%clk 0:02:12.9]} 18... b5 {[%clk 0:02:34]} 19. Bd5 {[%clk
0:02:10.1]} 19... Nf6 {[%clk 0:02:29]} 20. Bxc6 {[%clk 0:02:08.4]} 20... Qxc6
{[%clk 0:02:29.9]} 21. f3 {[%clk 0:02:05.5]} 21... b4 {[%clk 0:02:29.5]} 22.
axb4 {[%clk 0:02:01.1]} 22... a3 {[%clk 0:02:30]} 23. b5 {[%clk 0:01:59.4]}
23... Qc5+ {[%clk 0:02:25.7]} 24. Qf2 {[%clk 0:01:58.5]} 24... axb2 {[%clk
0:02:26.3]} 25. Qxc5 {[%clk 0:01:57.4]} 25... dxc5 {[%clk 0:02:27.2]} 26. Rb1
{[%clk 0:01:57.6]} 26... Ra3 {[%clk 0:02:26.3]} 27. Nd1 {[%clk 0:01:54.3]} 27...
Rb8 {[%clk 0:02:22.7]} 28. Rxb2 {[%clk 0:01:52.9]} 28... c4 {[%clk 0:02:22.6]}
29. Rb4 {[%clk 0:01:51.1]} 29... Nd7 {[%clk 0:02:17.8]} 30. Nb2 {[%clk
0:01:48.2]} 30... Rc3 {[%clk 0:02:12.5]} 31. Rc1 {[%clk 0:01:38.7]} 31... Ne5
{[%clk 0:02:12.4]} 32. Na4 {[%clk 0:01:32.3]} 32... Ra3 {[%clk 0:02:09.9]} 33.
Kf2 {[%clk 0:01:31.5]} 33... g5 {[%clk 0:02:09.2]} 34. Ke2 {[%clk 0:01:26.1]}
34... Kf6 {[%clk 0:02:08.6]} 35. Nc5 {[%clk 0:01:24.6]} 35... e6 {[%clk
0:02:05.3]} 36. b6 {[%clk 0:01:23.8]} 36... Ke7 {[%clk 0:02:03.9]} 37. b7 {[%clk
0:01:22.1]} 37... Kd6 {[%clk 0:02:03.2]} 38. Na4 {[%clk 0:01:17.1]} 38... Kc7
{[%clk 0:01:59.2]} 39. Rcb1 {[%clk 0:01:16]} 39... Ra2 {[%clk 0:01:55.9]} 40.
Kd2 {[%clk 0:01:14]} 40... h5 {[%clk 0:01:54.7]} 41. Kc3 {[%clk 0:01:07.3]}
41... h4 {[%clk 0:01:54.1]} 42. Nc5 {[%clk 0:01:05]} 42... Ra7 {[%clk
0:01:51.7]} 43. Rb6 {[%clk 0:01:03.9]} 43... Ra3+ {[%clk 0:01:23]} 44. Kd2
{[%clk 0:01:01.6]} 44... c3+ {[%clk 0:01:20.9]} 45. Ke1 {[%clk 0:00:55.6]} 45...
Nc4 {[%clk 0:01:14.3]} 46. Na6+ {[%clk 0:00:54.4]} 46... Rxa6 {[%clk 0:01:14.3]}
47. Rxa6 {[%clk 0:00:55.3]} 47... Ne3 {[%clk 0:01:09.6]} 48. Kf2 {[%clk
0:00:49.6]} 48... Nxc2 {[%clk 0:01:07.2]} 49. Rc1 {[%clk 0:00:48.2]} 49... Nd4
{[%clk 0:01:01.5]} 50. Rxc3+ {[%clk 0:00:47.7]} 50... Kxb7 {[%clk 0:01:01.7]}
51. Ra4 {[%clk 0:00:47.1]} 51... Nc6 {[%clk 0:00:59.7]} 52. Rb3+ {[%clk
0:00:44.6]} 52... Kc7 {[%clk 0:01:00.3]} 53. Rxb8 {[%clk 0:00:44.9]} 53... Kxb8
{[%clk 0:01:01.2]} 54. Rc4 {[%clk 0:00:45]} 54... Kc7 {[%clk 0:01:01.4]} 55. Ke3
{[%clk 0:00:44]} 55... Kd6 {[%clk 0:01:01.8]} 56. Rc1 {[%clk 0:00:43.7]} 56...
f6 {[%clk 0:01:02.1]} 57. f4 {[%clk 0:00:43.7]} 57... gxf4+ {[%clk 0:00:56.9]}
58. Kxf4 {[%clk 0:00:44.6]} 58... Ne5 {[%clk 0:00:57.4]} 59. Rd1+ {[%clk
0:00:44]} 59... Ke7 {[%clk 0:00:57.6]} 60. Ra1 {[%clk 0:00:42.1]} 60... Kf7
{[%clk 0:00:58]} 61. Ra7+ {[%clk 0:00:41.2]} 61... Kg6 {[%clk 0:00:58.7]} 62.
Ra8 {[%clk 0:00:41]} 62... Nd3+ {[%clk 0:00:58.3]} 63. Kg4 {[%clk 0:00:40.7]}
63... f5+ {[%clk 0:00:56.7]} 64. exf5+ {[%clk 0:00:40]} 64... exf5+ {[%clk
0:00:57.4]} 65. Kxh4 {[%clk 0:00:40.6]} 65... Nf4 {[%clk 0:00:57.4]} 66. Ra6+
{[%clk 0:00:39.8]} 66... Kf7 {[%clk 0:00:56.9]} 67. Kg5 {[%clk 0:00:40.1]} 67...
Nxg2 {[%clk 0:00:57.2]} 68. Kxf5 {[%clk 0:00:40.4]} 68... Kg7 {[%clk 0:00:56.3]}
69. Kg5 {[%clk 0:00:40.7]} 69... Kf7 {[%clk 0:00:55.5]} 70. h4 {[%clk
0:00:41.1]} 70... Ne3 {[%clk 0:00:55.7]} 71. h5 {[%clk 0:00:41]} 71... Nd5
{[%clk 0:00:54.8]} 72. h6 {[%clk 0:00:40.8]} 72... Kg8 {[%clk 0:00:55.2]} 73.
Ra8+ {[%clk 0:00:38.4]} 73... Kh7 {[%clk 0:00:55.3]} 74. Ra7+ {[%clk 0:00:39]}
74... Kh8 {[%clk 0:00:55.2]} 75. Kf5 {[%clk 0:00:37.2]} 75... Ne3+ {[%clk
0:00:53.6]} 76. Kg6 {[%clk 0:00:37.3]} 1-0

[Event "Late-Titled-Tuesday-Blitz-February-13-2024"]
[Site "Chess.com"]
[Date "2024.02.13"]
[Round "10"]
[White "ArchibaldCerveza29"]
[Black "Defenstrator"]
[Result "0-1"]
[WhiteElo "2484"]
[BlackElo "2383"]
[TimeControl "180+1"]
[EndTime "15:55:13 PST"]
[Termination "Defenstrator won by checkmate"]

1. b3 {[%clk 0:02:51]} 1... a5 {[%clk 0:03:00.9]} 2. Bb2 {[%clk 0:02:51.9]} 2...
a4 {[%clk 0:03:01.2]} 3. g3 {[%clk 0:02:50.3]} 3... axb3 {[%clk 0:03:00.7]} 4.
axb3 {[%clk 0:02:49.4]} 4... Rxa1 {[%clk 0:03:01.6]} 5. Bxa1 {[%clk 0:02:50.3]}
5... Nc6 {[%clk 0:02:53.9]} 6. Bg2 {[%clk 0:02:50]} 6... e5 {[%clk 0:02:53.2]}
7. e3 {[%clk 0:02:45.4]} 7... d5 {[%clk 0:02:51.6]} 8. Ne2 {[%clk 0:02:44.5]}
8... h5 {[%clk 0:02:50.1]} 9. h3 {[%clk 0:02:44.5]} 9... Nf6 {[%clk 0:02:45.2]}
10. d3 {[%clk 0:02:39.6]} 10... Be6 {[%clk 0:02:39.9]} 11. Nd2 {[%clk
0:02:39.3]} 11... Bd6 {[%clk 0:02:35.1]} 12. O-O {[%clk 0:02:35.1]} 12... Qd7
{[%clk 0:02:12.5]} 13. h4 {[%clk 0:02:31.7]} 13... Bh3 {[%clk 0:02:04.6]} 14. c4
{[%clk 0:02:18.7]} 14... Rg8 {[%clk 0:01:46.9]} 15. Nf3 {[%clk 0:02:12]} 15...
Bxg2 {[%clk 0:01:33.8]} 16. Kxg2 {[%clk 0:02:12.5]} 16... e4 {[%clk 0:01:32.9]}
17. Ng5 {[%clk 0:02:10.8]} 17... exd3 {[%clk 0:01:27]} 18. Qxd3 {[%clk
0:02:11.7]} 18... Ne5 {[%clk 0:01:25.3]} 19. Qc2 {[%clk 0:02:02.1]} 19... dxc4
{[%clk 0:01:26.2]} 20. bxc4 {[%clk 0:01:59]} 20... Qc6+ {[%clk 0:01:26.6]} 21.
e4 {[%clk 0:01:44.3]} 21... Qxc4 {[%clk 0:01:24.2]} 22. Qxc4 {[%clk 0:01:39.6]}
22... Nxc4 {[%clk 0:01:24.8]} 23. Rc1 {[%clk 0:01:39.9]} 23... b5 {[%clk
0:01:24.2]} 24. Nd4 {[%clk 0:01:19.6]} 24... Na3 {[%clk 0:01:23]} 25. e5 {[%clk
0:01:03]} 25... Bxe5 {[%clk 0:01:11.4]} 26. Re1 {[%clk 0:01:02.3]} 26... Ng4
{[%clk 0:01:04.9]} 27. f3 {[%clk 0:00:57.3]} 27... c5 {[%clk 0:00:49.9]} 28. Nc6
{[%clk 0:00:50.9]} 28... Nc2 {[%clk 0:00:47.9]} 29. Rd1 {[%clk 0:00:46.1]} 29...
Nge3+ {[%clk 0:00:46.4]} 30. Kh3 {[%clk 0:00:38]} 30... Nxd1 {[%clk 0:00:42.3]}
31. Bxe5 {[%clk 0:00:25.2]} 31... f6 {[%clk 0:00:41.9]} 32. Bf4 {[%clk
0:00:12.4]} 32... fxg5 {[%clk 0:00:41.4]} 33. hxg5 {[%clk 0:00:13.3]} 33... b4
{[%clk 0:00:40.2]} 34. g6 {[%clk 0:00:11.6]} 34... b3 {[%clk 0:00:39.7]} 35. Be5
{[%clk 0:00:10.6]} 35... b2 {[%clk 0:00:38.6]} 36. Bxb2 {[%clk 0:00:10.5]} 36...
Nxb2 {[%clk 0:00:39.3]} 37. Kh4 {[%clk 0:00:11.1]} 37... Rh8 {[%clk 0:00:33.4]}
38. f4 {[%clk 0:00:10.5]} 38... Nd4 {[%clk 0:00:31.1]} 39. Ne5 {[%clk
0:00:10.3]} 39... c4 {[%clk 0:00:27.6]} 40. Nf7 {[%clk 0:00:10.3]} 40... Rf8
{[%clk 0:00:24.2]} 41. Nd6+ {[%clk 0:00:10.8]} 41... Ke7 {[%clk 0:00:23.2]} 42.
Ne4 {[%clk 0:00:10.4]} 42... Nd1 {[%clk 0:00:20.2]} 43. Kxh5 {[%clk 0:00:08.8]}
43... c3 {[%clk 0:00:20.7]} 44. Nxc3 {[%clk 0:00:07.5]} 44... Nxc3 {[%clk
0:00:21.6]} 45. g4 {[%clk 0:00:08.1]} 45... Ne4 {[%clk 0:00:21.7]} 46. f5 {[%clk
0:00:08.2]} 46... Rh8# {[%clk 0:00:21.7]} 0-1